bitfinex-derivatives/quotes_BTCF0:USTF0_20241125
["timestamp","ask_amount","ask_price","bid_price","bid_amount"]
[1732550870406,0.36287963,95901.0,95880.0,0.10027374]
[1732550870711,0.25117572,95889.0,95888.0,0.052136]
[1732550872409,0.25217572,95889.0,95888.0,0.061136]
[1732550873020,0.25317572,95889.0,95888.0,0.061136]
[1732550874812,0.002,95889.0,95888.0,0.061136]
[1732550880315,0.25317572,95889.0,95888.0,0.061136]
[1732550881006,0.25317572,95889.0,95888.0,0.009]
[1732550881318,0.25317572,95889.0,95888.0,0.00223265]
[1732550882705,0.002,95889.0,95888.0,0.00223265]
[1732550882912,0.002,95889.0,95888.0,0.05923265]
[1732550883414,7.963e-05,95901.0,95900.0,0.052129]
[1732550883618,0.3608,95924.0,95923.0,0.052117]
[1732550884009,0.61197572,95924.0,95912.0,0.2406]
[1732550884316,0.38167137,95924.0,95923.0,0.052117]
[1732550884520,0.3608,95924.0,95923.0,0.052117]
[1732550884822,0.3608,95924.0,95923.0,0.412917]
[1732550884823,0.2512907,95924.0,95923.0,0.412917]
[1732550885112,0.00011498,95924.0,95923.0,0.412917]
[1732550885321,0.2512907,95924.0,95923.0,0.052117]
[1732550885610,0.2512907,95924.0,95903.0,0.00156389]
[1732550885809,0.25117572,95916.0,95915.0,0.052121]
[1732550886215,0.25117572,95916.0,95903.0,0.01060374]
[1732550886405,0.25117572,95904.0,95903.0,0.05369189]
[1732550887016,0.25117572,95904.0,95903.0,0.00156389]
[1732550887413,0.40652363,95904.0,95903.0,0.00156389]
[1732550887720,0.30189124,95904.0,95903.0,0.00156389]
[1732550888107,0.30189467,95904.0,95903.0,0.00156389]
[1732550888510,0.30189467,95904.0,95894.0,0.052132]
[1732550888714,0.30189467,95904.0,95883.0,0.2406]
[1732550888715,0.25117572,95890.0,95889.0,0.052135]
[1732550889016,0.05071895,95890.0,95883.0,0.2497847]
[1732550889205,0.1557933,95884.0,95883.0,0.0091847]
[1732550889411,0.30189631,95884.0,95880.0,0.00156449]
[1732550889608,0.25117572,95881.0,95880.0,0.00156449]
[1732550889923,0.30189631,95881.0,95880.0,0.00156449]
[1732550891713,0.30189631,95881.0,95870.0,0.052145]
[1732550891714,0.66277363,95881.0,95870.0,0.052145]
[1732550891921,0.66277363,95881.0,95867.0,0.0574]
[1732550891922,0.25117572,95868.0,95867.0,0.05097268]
[1732550892113,0.30189631,95868.0,95851.0,0.0006]
[1732550892314,0.3608,95873.0,95862.0,0.052149]
[1732550892315,0.32338201,95867.0,95862.0,0.052149]
[1732550892505,0.32338201,95867.0,95850.0,0.3608]
[1732550892506,0.32339474,95867.0,95864.0,0.052149]
[1732550892708,0.30190904,95867.0,95866.0,0.01930419]
[1732550893012,0.32339474,95867.0,95866.0,0.052148]
[1732550893216,0.05073332,95867.0,95866.0,0.052148]
[1732550893414,0.0214857,95870.0,95869.0,0.052146]
[1732550893618,0.0214857,95878.0,95869.0,0.3608]
[1732550893819,0.18714683,95871.0,95869.0,0.3608]
[1732550894115,0.25117572,95875.0,95869.0,0.3608]
[1732550894116,0.18714683,95872.0,95870.0,0.052146]
[1732550894309,0.05072705,95871.0,95870.0,0.052146]
[1732550894705,0.36187732,95881.0,95869.0,0.3608]
[1732550894706,0.15594957,95872.0,95869.0,0.3608]
[1732550894908,0.00107732,95881.0,95880.0,0.05214]
[1732550895156,3.2e-07,95881.0,95880.0,0.85122]
[1732550895338,0.21811806,95891.0,95890.0,0.052135]
[1732550895512,0.16302706,95891.0,95890.0,0.651855]
[1732550895819,0.24855969,95900.0,95899.0,0.05213]
[1732550896118,0.24855969,95900.0,95899.0,0.65185]
[1732550896521,0.24867446,95900.0,95899.0,0.41293]
[1732550896811,0.00011477,95900.0,95899.0,0.65185]
[1732550897136,0.00411477,95900.0,95899.0,0.65185]
[1732550897710,7.7e-07,95900.0,95899.0,0.96118714]
[1732550897911,7.7e-07,95900.0,95899.0,1.27402714]
[1732550898110,7.7e-07,95900.0,95899.0,0.66118714]
[1732550898616,0.00100077,95900.0,95899.0,0.66118714]
[1732550898816,0.00113628,95900.0,95899.0,0.66118714]
[1732550899823,6.9e-07,95900.0,95899.0,0.66118714]
[1732550901807,6.9e-07,95900.0,95899.0,0.42226714]
[1732550902124,6.9e-07,95900.0,95888.0,0.052136]
[1732550902125,0.25117641,95900.0,95888.0,0.052136]
[1732550902348,0.3608,95894.0,95887.0,0.18418945]
[1732550902619,0.25117572,95888.0,95887.0,0.18418945]
[1732550903008,0.25117572,95888.0,95882.0,0.24558593]
[1732550903315,0.61197572,95883.0,95882.0,0.24558593]
[1732550905019,0.66611472,95883.0,95882.0,0.24558593]
[1732550905214,0.61397572,95883.0,95882.0,0.24558593]
[1732550906015,0.61397572,95883.0,95873.0,0.052144]
[1732550906217,0.25117572,95880.0,95873.0,0.052144]
[1732550906724,0.25117572,95880.0,95878.0,0.052141]
[1732550906922,0.002,95883.0,95872.0,0.25029691]
[1732550907125,0.002,95883.0,95882.0,0.052139]
[1732550907646,6.9e-07,95900.0,95898.0,0.05213]
[1732550907921,6.9e-07,95900.0,95899.0,0.23892]
[1732550909321,6.9e-07,95900.0,95899.0,0.59972]
[1732550909825,0.00200069,95900.0,95899.0,0.59972]
[1732550910022,0.3608,95920.0,95919.0,0.052119]
[1732550910423,0.61197572,95920.0,95919.0,0.052119]
[1732550910624,0.61197572,95920.0,95900.0,0.21308138]
[1732550910625,0.61197572,95920.0,95900.0,0.0569]
[1732550910824,0.25117572,95912.0,95907.0,0.3608]
[1732550911147,0.25117572,95901.0,95900.0,0.01136257]
[1732550911424,0.25117572,95901.0,95893.0,0.01145508]
[1732550911425,0.61197572,95901.0,95893.0,0.01145508]
[1732550911624,0.25117572,95891.0,95882.0,0.43884]
[1732550911827,0.25117572,95883.0,95882.0,0.01168404]
[1732550912121,0.25117572,95883.0,95881.0,0.052139]
[1732550912321,0.25117572,95882.0,95880.0,0.05214]
[1732550912541,0.61197572,95881.0,95868.0,0.23888]
[1732550912719,0.30331572,95880.0,95870.0,0.01157608]
[1732550913221,0.3540428,95880.0,95870.0,0.01157608]
[1732550913423,0.052142,95877.0,95870.0,0.01157608]
[1732550913723,0.61197572,95871.0,95864.0,0.052149]
[1732550913926,0.25117572,95865.0,95864.0,0.052149]
[1732550916120,0.25117572,95865.0,95859.0,0.01324934]
[1732550916316,0.25117572,95860.0,95859.0,0.01324934]
[1732550916722,0.25117572,95860.0,95859.0,0.0015646]
[1732550916917,0.25117572,95860.0,95850.0,0.00011139]
[1732550916918,0.30191294,95860.0,95850.0,0.00011139]
[1732550917131,0.3608,95851.0,95843.0,0.01153446]
[1732550917314,0.25117572,95844.0,95835.0,0.052164]
[1732550917532,0.25117572,95834.0,95831.0,0.052167]
[1732550917721,0.25117572,95834.0,95832.0,0.01144661]
[1732550917920,0.30334072,95834.0,95820.0,0.052173]
[1732550918223,0.30334072,95834.0,95815.0,0.00012741]
[1732550918224,0.25127962,95834.0,95815.0,0.00012741]
[1732550918418,0.26280252,95834.0,95823.0,0.0112998]
[1732550918820,0.25117572,95824.0,95815.0,0.00012741]
[1732550919132,0.0001039,95834.0,95833.0,0.052166]
[1732550919326,0.0001039,95834.0,95833.0,0.651886]
[1732550919635,0.0021039,95834.0,95833.0,0.291086]
[1732550920327,0.0001039,95834.0,95833.0,0.291086]
[1732550920526,0.3608,95857.0,95855.0,0.052154]
[1732550921233,0.37231088,95857.0,95855.0,0.052154]
[1732550921542,0.1868665,95856.0,95855.0,0.052154]
[1732550921837,0.43804222,95856.0,95845.0,0.052159]
[1732550922027,0.3608,95846.0,95845.0,0.052159]
[1732550922224,0.61197572,95846.0,95837.0,0.052164]
[1732550922552,0.61197572,95846.0,95833.0,0.01]
[1732550922553,0.3608,95846.0,95833.0,0.01]
[1732550922742,0.25117572,95834.0,95833.0,0.02167405]
[1732550923032,0.25117572,95834.0,95833.0,0.009]
[1732550923033,0.25217572,95834.0,95833.0,0.009]
[1732550923824,0.25217572,95834.0,95833.0,0.0021376]
[1732550924144,0.25117572,95834.0,95824.0,0.05217]
[1732550924327,0.70510775,95825.0,95824.0,0.05217]
[1732550924521,0.61197572,95825.0,95824.0,0.05217]
[1732550924727,0.61197572,95825.0,95820.0,0.01151544]
[1732550925024,0.25117572,95821.0,95820.0,0.052173]
[1732550925940,0.25117572,95821.0,95815.0,0.01167622]
[1732550926179,0.25117572,95821.0,95808.0,0.01144605]
[1732550926180,0.25117572,95809.0,95808.0,0.01144605]
[1732550926323,0.62113578,95809.0,95800.0,0.11]
[1732550926525,0.344231,95806.0,95803.0,0.052182]
[1732550926741,0.00916006,95805.0,95803.0,0.052182]
[1732550926938,0.10221534,95804.0,95803.0,0.02868205]
[1732550927236,0.01650019,95804.0,95803.0,0.651862]
[1732550927533,0.002,95821.0,95820.0,0.052173]
[1732550927734,0.13012674,95849.0,95833.0,0.0399]
[1732550927735,0.15514175,95834.0,95833.0,0.0399]
[1732550927926,0.18674931,95858.0,95833.0,1.13716]
[1732550928127,0.25117572,95850.0,95849.0,0.052157]
[1732550928329,0.24974842,95861.0,95842.0,0.052161]
[1732550928527,0.24974842,95861.0,95841.0,0.3608]
[1732550928528,0.18674931,95866.0,95854.0,0.052154]
[1732550928741,0.3608,95875.0,95854.0,0.052154]
[1732550928742,0.3608,95875.0,95855.0,0.23888]
[1732550928932,0.3608,95865.0,95855.0,0.23888]
[1732550929330,0.3608,95865.0,95845.0,0.291039]
[1732550929331,0.61209291,95856.0,95845.0,0.291039]
[1732550929528,0.25117572,95846.0,95845.0,0.291039]
[1732550930545,0.25117572,95846.0,95845.0,0.23231847]
[1732550930729,0.25117572,95846.0,95845.0,0.19969551]
[1732550930934,0.25117572,95846.0,95845.0,0.25185451]
[1732550931133,0.25117572,95846.0,95845.0,0.19969551]
[1732550931340,0.25317572,95846.0,95845.0,0.19969551]
[1732550931531,0.25317572,95846.0,95843.0,0.23888]
[1732550931728,0.002,95846.0,95843.0,0.23888]
[1732550931933,0.25117572,95844.0,95843.0,0.23888]
[1732550932942,0.002,95846.0,95844.0,0.05216]
[1732550933128,0.25117572,95846.0,95844.0,0.05216]
[1732550933330,0.25117572,95845.0,95844.0,0.05216]
[1732550933630,0.25117572,95845.0,95844.0,0.02867054]
[1732550934233,0.25117572,95845.0,95843.0,0.23888]
[1732550934642,0.25317572,95845.0,95843.0,0.23888]
[1732550934838,0.61197572,95844.0,95841.0,0.01155477]
[1732550935036,0.25117572,95842.0,95838.0,0.23888]
[1732550935342,0.25117572,95836.0,95835.0,0.24044505]
[1732550935648,0.25117572,95836.0,95835.0,0.00156505]
[1732550935845,0.61197572,95836.0,95833.0,0.01167112]
[1732550936043,0.61197572,95836.0,95810.0,0.12414949]
[1732550936044,0.25117572,95814.0,95810.0,0.12414949]
[1732550936232,0.3608,95828.0,95814.0,0.052176]
[1732550936634,0.25117572,95815.0,95814.0,0.052176]
[1732550936933,0.25117572,95815.0,95814.0,0.291056]
[1732550937445,0.25117572,95815.0,95814.0,0.052176]
[1732550937637,0.26677861,95815.0,95814.0,0.291056]
[1732550938131,0.01560289,95815.0,95814.0,0.291056]
[1732550938535,0.01560289,95815.0,95814.0,0.291096]
[1732550938735,0.01760289,95815.0,95814.0,0.291096]
[1732550938939,0.01760289,95815.0,95814.0,0.052176]
[1732550939144,0.02729725,95815.0,95814.0,0.291096]
[1732550939350,0.24144931,95844.0,95814.0,0.651896]
[1732550939645,0.61197572,95832.0,95829.0,0.052168]
[1732550939851,0.61197572,95832.0,95820.0,0.15618138]
[1732550940169,0.02381575,95840.0,95839.0,0.052163]
[1732550940440,0.02381575,95840.0,95828.0,0.3608]
[1732550940441,0.25117572,95838.0,95837.0,0.2374064]
[1732550940642,0.30192255,95838.0,95837.0,0.1852424]
[1732550940850,0.3257383,95838.0,95837.0,0.1852424]
[1732550941047,0.3257383,95838.0,95837.0,0.15261513]
[1732550941048,0.30192255,95838.0,95837.0,0.15261513]
[1732550941235,0.30192255,95838.0,95836.0,0.052164]
[1732550941236,0.25117572,95838.0,95829.0,0.0566]
[1732550941442,0.25117572,95835.0,95834.0,0.052165]
[1732550941644,0.25117572,95843.0,95834.0,0.052165]
[1732550941845,0.25117572,95843.0,95842.0,0.052161]
[1732550942646,0.25117572,95843.0,95839.0,0.3608]
[1732550942841,0.18695994,95850.0,95824.0,0.23892]
[1732550942842,0.25117572,95840.0,95824.0,0.23892]
[1732550943040,0.05074371,95842.0,95814.0,0.3608]
[1732550943041,0.25117572,95820.0,95819.0,0.052173]
[1732550943277,0.07457068,95820.0,95819.0,0.052173]
[1732550943545,0.32574611,95820.0,95819.0,0.052173]
[1732550943748,0.32574555,95820.0,95819.0,0.052173]
[1732550943937,0.27499147,95820.0,95819.0,0.052173]
[1732550944139,0.25117572,95820.0,95819.0,0.052173]
[1732550944751,0.30492979,95820.0,95819.0,0.052173]
[1732550945050,0.25417572,95820.0,95819.0,0.052173]
[1732550946250,0.30493388,95820.0,95814.0,0.01141461]
[1732550946455,0.61197572,95815.0,95804.0,0.3608]
[1732550946663,0.05076312,95814.0,95813.0,0.412977]
[1732550946946,0.18710384,95814.0,95813.0,0.651897]
[1732550947140,0.19010384,95820.0,95819.0,0.052173]
[1732550947360,0.30493108,95820.0,95819.0,0.052173]
[1732550947540,0.30493108,95820.0,95813.0,0.3608]
[1732550947843,0.30493108,95820.0,95812.0,0.052177]
[1732550947844,0.25117572,95814.0,95812.0,0.052177]
[1732550948050,0.25117572,95819.0,95817.0,0.052174]
[1732550948246,0.05075672,95818.0,95817.0,0.052174]
[1732550948456,0.05075672,95818.0,95813.0,0.009]
[1732550948457,0.30193244,95818.0,95813.0,0.009]
[1732550948659,0.61197572,95814.0,95813.0,0.009]
[1732550948859,0.61197572,95814.0,95804.0,0.40986878]
[1732550948860,0.25117572,95805.0,95804.0,0.40986878]
[1732550949147,0.32575307,95805.0,95804.0,0.40986878]
[1732550949349,0.27499147,95805.0,95804.0,0.40986878]
[1732550949547,0.30193973,95805.0,95800.0,0.11]
[1732550949751,0.25117572,95801.0,95800.0,0.11]
[1732550950055,0.32575873,95801.0,95800.0,0.03819175]
[1732550950250,0.2001298,95801.0,95800.0,0.24859198]
[1732550950553,7.993e-05,95805.0,95800.0,0.24859198]
[1732550950554,7.993e-05,95805.0,95804.0,0.052182]
[1732550950757,7.993e-05,95805.0,95804.0,0.412982]
[1732550951051,0.00107993,95805.0,95804.0,0.001]
[1732550951251,0.25225565,95805.0,95800.0,0.29421624]
[1732550951459,0.25117572,95801.0,95800.0,0.24203224]
[1732550951654,0.25117572,95801.0,95800.0,0.29421624]
[1732550952340,0.24947595,95785.0,95779.0,0.3608]
[1732550952656,0.24947595,95777.0,95768.0,0.052201]
[1732550952953,0.0555,95784.0,95774.0,0.052198]
[1732550953152,0.0555,95784.0,95763.0,0.25470856]
[1732550953153,0.24947595,95775.0,95763.0,0.25470856]
[1732550953343,0.052194,95781.0,95766.0,0.05231012]
[1732550953548,0.24947595,95767.0,95766.0,0.05231012]
[1732550953852,0.4163,95784.0,95775.0,0.052197]
[1732550954059,0.24947595,95776.0,95769.0,0.0522]
[1732550954358,0.4163,95784.0,95782.0,0.052193]
[1732550954359,0.01156559,95784.0,95782.0,0.052193]
[1732550954710,0.01156559,95784.0,95766.0,0.00010812]
[1732550954711,0.24947595,95783.0,95771.0,0.3608]
[1732550954844,0.24947595,95779.0,95771.0,0.3608]
[1732550955044,0.01156559,95784.0,95772.0,0.3608]
[1732550955247,0.24947595,95773.0,95772.0,0.412999]
[1732550955543,0.00931202,95773.0,95772.0,0.412999]
[1732550956149,0.001,95776.0,95772.0,0.3608]
[1732550956359,0.24947595,95775.0,95774.0,0.052198]
[1732550956950,0.001,95776.0,95774.0,0.052198]
[1732550957152,0.5790543,95811.0,95774.0,0.052198]
[1732550957153,0.01160363,95806.0,95777.0,0.052196]
[1732550957369,0.01160363,95806.0,95774.0,0.352198]
[1732550957370,0.3608,95810.0,95804.0,0.052182]
[1732550957550,0.3608,95810.0,95804.0,0.24308]
[1732550957856,0.24955588,95805.0,95804.0,0.24308]
[1732550958048,7.993e-05,95805.0,95804.0,0.24308]
[1732550958258,7.993e-05,95805.0,95804.0,0.60388]
[1732550958654,7.993e-05,95805.0,95804.0,0.24308]
[1732550959150,7.993e-05,95805.0,95804.0,0.60388]
[1732550959367,0.00107993,95805.0,95804.0,0.61540145]
[1732550959757,0.00107993,95805.0,95804.0,0.67060145]
[1732550960257,0.1554824,95827.0,95804.0,0.67060145]
[1732550960258,0.1554824,95827.0,95804.0,1.33902145]
[1732550960451,0.1554824,95836.0,95826.0,0.3608]
[1732550960652,0.24947595,95830.0,95827.0,0.24308]
[1732550960969,0.0547,95843.0,95827.0,0.24308]
[1732550960970,0.3608,95837.0,95827.0,0.24308]
[1732550961163,0.24947595,95828.0,95827.0,0.24308]
[1732550963162,0.40512707,95828.0,95827.0,0.24308]
[1732550963365,0.24947595,95828.0,95827.0,0.24308]
[1732550963570,0.25247595,95828.0,95827.0,0.24308]
[1732550963968,0.26413192,95828.0,95827.0,0.24308]
[1732550964466,0.26413192,95828.0,95798.0,0.3608]
[1732550964467,0.26413192,95828.0,95812.0,0.24304]
[1732550964663,0.26413192,95828.0,95798.0,0.3608]
[1732550964664,0.1557411,95817.0,95811.0,0.24304]
[1732550964970,0.1557411,95817.0,95798.0,0.37234952]
[1732550964971,0.24947595,95806.0,95800.0,0.15618138]
[1732550965167,0.24947595,95806.0,95801.0,0.24304]
[1732550965862,0.05712842,95806.0,95801.0,0.24304]
[1732550966760,0.05712842,95806.0,95801.0,0.25204]
[1732550966761,0.05812842,95806.0,95801.0,0.25204]
[1732550967579,0.12461443,95804.0,95801.0,0.25204]
[1732550968167,0.05712842,95802.0,95801.0,0.009]
[1732550968560,0.10789166,95802.0,95801.0,0.009]
[1732550968964,0.10789166,95802.0,95801.0,0.002]
[1732550969166,0.16007466,95802.0,95801.0,0.002]
[1732550969570,0.16307466,95802.0,95801.0,0.002]
[1732550970207,0.66392324,95802.0,95779.0,0.30367158]
[1732550970378,0.3608,95780.0,95761.0,0.24304]
[1732550970670,0.12461955,95772.0,95766.0,0.36090812]
[1732550970875,0.12461955,95774.0,95766.0,0.37484595]
[1732550971188,0.3608,95780.0,95766.0,0.37484595]
[1732550971189,0.12461955,95772.0,95766.0,0.01404595]
[1732550971368,0.12461955,95770.0,95766.0,0.00010812]
[1732550971769,0.3608,95772.0,95766.0,0.00010812]
[1732550971976,0.15580122,95775.0,95768.0,0.3608]
[1732550972171,0.15580122,95775.0,95766.0,0.00010812]
[1732550972172,0.15580122,95774.0,95766.0,0.00010812]
[1732550972569,0.15580122,95773.0,95766.0,0.00010812]
[1732550972768,0.15580122,95774.0,95766.0,0.00010812]
[1732550972962,0.12464446,95767.0,95766.0,0.00010812]
[1732550973167,0.001,95772.0,95766.0,0.00910812]
[1732550973563,0.12462014,95768.0,95766.0,0.00910812]
[1732550974201,0.12462014,95768.0,95766.0,0.24318812]
[1732550974510,0.12462014,95767.0,95766.0,0.25218812]
[1732550974881,0.15680122,95772.0,95766.0,0.25218812]
[1732550975078,0.05078481,95771.0,95766.0,0.0641199]
[1732550975268,0.15680122,95772.0,95768.0,0.3608]
[1732550975571,0.001,95772.0,95766.0,0.0641199]
[1732550975779,0.51760122,95772.0,95766.0,0.0641199]
[1732550975981,0.001,95768.0,95766.0,0.0551199]
[1732550976175,0.002,95768.0,95767.0,0.24308]
[1732550976418,0.1265907,95768.0,95767.0,0.24308]
[1732550976678,0.1245907,95770.0,95767.0,0.60388]
[1732550976866,0.001,95772.0,95768.0,0.3608]
[1732550976867,0.1245907,95769.0,95768.0,0.3608]
[1732550977064,0.002,95772.0,95770.0,0.0522]
[1732550977265,0.001,95772.0,95770.0,0.0522]
[1732550977676,0.1245907,95778.0,95770.0,0.0522]
[1732550977977,0.1245907,95778.0,95771.0,0.052199]
[1732550978167,0.1245907,95777.0,95773.0,0.052198]
[1732550978367,0.1245907,95778.0,95769.0,0.00060007]
[1732550978666,0.1245907,95777.0,95773.0,0.00121901]
[1732550978876,0.51660122,95783.0,95773.0,0.00121901]
[1732550978877,0.1245907,95776.0,95773.0,0.00121901]
[1732550979478,0.1245907,95775.0,95773.0,0.00121901]
[1732550979681,0.1245907,95776.0,95774.0,0.00121901]
[1732550980066,0.003,95777.0,95774.0,0.00121901]
[1732550980466,0.003,95777.0,95775.0,0.24564]
[1732550980669,0.3608,95783.0,95775.0,0.24564]
[1732550980865,0.003,95776.0,95775.0,0.24564]
[1732550981774,0.003,95776.0,95769.0,0.00060007]
[1732550982073,0.003,95776.0,95769.0,0.24624007]
[1732550982279,0.003,95776.0,95769.0,0.22273165]
[1732550982280,0.15580122,95775.0,95769.0,0.22273165]
[1732550982465,0.15580122,95773.0,95769.0,0.22273165]
[1732550982666,0.28061267,95813.0,95769.0,0.22273165]
[1732550982971,0.00084,95817.0,95803.0,0.87778138]
[1732550983273,0.1245589,95810.0,95804.0,0.6844]
[1732550983476,0.12457736,95813.0,95809.0,0.3608]
[1732550983772,0.01425416,95834.0,95809.0,0.3608]
[1732550983773,0.00011487,95812.0,95809.0,0.3608]
[1732550983970,0.00011487,95812.0,95811.0,0.3608]
[1732550985185,0.15618138,95870.0,95811.0,0.3608]
[1732550985186,0.12457736,95841.0,95823.0,0.3608]
[1732550985372,0.052149,95864.0,95840.0,0.7216]
[1732550985373,0.12457736,95850.0,95840.0,0.7216]
[1732550985575,0.02089583,95851.0,95849.0,0.3608]
[1732550985770,0.07305183,95851.0,95849.0,0.3608]
[1732550985969,0.32089583,95851.0,95840.0,0.3608]
[1732550986168,0.12444317,95841.0,95840.0,0.3608]
[1732550986369,0.052167,95830.0,95829.0,0.3608]
[1732550987812,0.054167,95830.0,95829.0,0.3608]
[1732550987970,0.002,95830.0,95829.0,0.3608]
[1732550988471,0.002,95830.0,95820.0,0.3608]
[1732550988472,0.302,95830.0,95811.0,0.00011714]
[1732550988682,0.12446371,95816.0,95811.0,0.00011714]
[1732550988878,0.12446371,95815.0,95811.0,0.00011714]
[1732550989382,0.052176,95814.0,95811.0,0.00011714]
[1732550989582,0.12446371,95812.0,95811.0,0.00011714]
[1732550989893,0.052176,95814.0,95811.0,0.00011714]
[1732550990466,0.054176,95814.0,95811.0,0.00011714]
[1732550990679,0.002,95814.0,95811.0,0.00011714]
[1732550990912,0.054176,95814.0,95811.0,0.00011714]
[1732550991184,0.054176,95814.0,95812.0,0.052177]
[1732550991185,0.002,95814.0,95812.0,0.052177]
[1732550991575,0.12451221,95813.0,95812.0,0.052177]
[1732550992183,0.12651221,95814.0,95811.0,0.00011714]
[1732550992392,0.12451221,95812.0,95811.0,0.05229414]
[1732550992572,0.002,95814.0,95811.0,0.05229414]
[1732550992771,0.002,95814.0,95812.0,0.052177]
[1732550993376,0.12751221,95814.0,95811.0,0.00011714]
[1732550993575,0.003,95814.0,95812.0,0.052177]
[1732550993987,0.12451221,95818.0,95816.0,0.052175]
[1732550994180,0.12457742,95818.0,95817.0,0.3608]
[1732550994380,0.12457742,95818.0,95817.0,0.412974]
[1732550994687,0.168465,95834.0,95819.0,0.052173]
[1732550994688,0.13880781,95820.0,95819.0,0.052173]
[1732550994883,0.01423039,95820.0,95819.0,0.052173]
[1732550995101,0.12459353,95820.0,95819.0,0.052173]
[1732550995285,0.1163,95834.0,95817.0,0.3608]
[1732550995286,0.12459353,95822.0,95817.0,0.3608]
[1732550995478,0.46036741,95848.0,95817.0,0.3608]
[1732550995479,0.12459353,95828.0,95821.0,0.3608]
[1732550995803,0.12459353,95831.0,95830.0,0.052167]
[1732550996127,0.12459353,95832.0,95830.0,0.052167]
[1732550996380,0.12459353,95833.0,95829.0,0.052168]
[1732550996581,0.12459353,95834.0,95829.0,0.052168]
[1732550996773,0.12459353,95834.0,95827.0,0.7216]
[1732550996774,0.12459353,95835.0,95827.0,0.7222]
[1732550996984,0.01475975,95848.0,95827.0,0.7222]
[1732550996985,0.12459353,95843.0,95827.0,0.7216]
[1732550997188,0.12459353,95845.0,95842.0,0.412961]
[1732550997376,0.12459353,95846.0,95842.0,0.412961]
[1732550997577,0.12459353,95849.0,95842.0,0.412961]
[1732550997779,0.00010213,95850.0,95842.0,0.412961]
[1732550997780,0.12459353,95848.0,95842.0,0.412961]
[1732550998085,0.12459353,95849.0,95844.0,0.052159]
[1732550998284,0.003,95843.0,95842.0,0.412961]
[1732550999387,0.003,95843.0,95842.0,0.3608]
[1732550999884,0.0523,95843.0,95842.0,0.3608]
[1732551000080,0.12438506,95844.0,95842.0,0.3608]
[1732551000285,0.05216,95844.0,95842.0,0.3608]
[1732551000484,0.12438506,95845.0,95842.0,0.3608]
[1732551000698,0.01401102,95847.0,95845.0,0.052159]
[1732551000893,0.00010213,95850.0,95849.0,0.052157]
[1732551002885,0.00010213,95850.0,95849.0,0.100757]
[1732551003092,0.00010213,95850.0,95848.0,0.3608]
[1732551003480,0.31610213,95850.0,95848.0,0.3608]
[1732551003683,0.00410213,95850.0,95849.0,0.001]
[1732551003885,0.01810013,95850.0,95849.0,0.001]
[1732551004188,0.01810013,95850.0,95849.0,0.01]
[1732551004189,0.01610013,95850.0,95849.0,0.01]
[1732551004591,0.01510013,95850.0,95849.0,0.009]
[1732551004776,0.01810013,95850.0,95848.0,0.3618]
[1732551005292,0.06725713,95850.0,95848.0,0.3618]
[1732551005492,0.01810013,95850.0,95848.0,0.3618]
[1732551005690,0.01810013,95850.0,95848.0,0.413957]
[1732551005896,0.00410213,95850.0,95848.0,0.413957]
[1732551006787,0.00410213,95850.0,95848.0,0.42821483]
[1732551007099,0.00410213,95850.0,95848.0,0.42721483]
[1732551007100,0.00310213,95850.0,95848.0,0.42721483]
[1732551007299,0.31610213,95850.0,95848.0,0.3608]
[1732551007487,0.313,95849.0,95848.0,0.3608]
[1732551007687,0.313,95849.0,95842.0,0.3608]
[1732551007902,0.05216,95843.0,95842.0,0.3608]
[1732551008123,0.313,95843.0,95842.0,0.3608]
[1732551008318,0.313,95843.0,95838.0,0.3608]
[1732551008507,0.052159,95847.0,95838.0,0.3608]
[1732551008831,0.17137758,95850.0,95838.0,0.3608]
[1732551009018,0.052162,95841.0,95838.0,0.3608]
[1732551009423,0.17237758,95850.0,95838.0,0.3608]
[1732551009424,0.052157,95849.0,95838.0,0.3608]
[1732551009720,0.052157,95849.0,95842.0,0.052161]
[1732551009916,0.0161962,95850.0,95846.0,0.3608]
[1732551010314,0.0151962,95850.0,95848.0,0.052157]
[1732551011114,0.0181962,95850.0,95848.0,0.052157]
[1732551011315,0.0171962,95850.0,95848.0,0.052157]
[1732551011920,0.00310213,95850.0,95848.0,0.052157]
[1732551012536,0.24073,95857.0,95846.0,0.3608]
[1732551012537,0.15721,95857.0,95856.0,0.052153]
[1732551012716,0.05760811,95857.0,95856.0,0.655073]
[1732551012924,0.05760811,95857.0,95856.0,0.98214928]
[1732551013317,0.05760811,95857.0,95856.0,0.66918928]
[1732551013626,0.01422736,95882.0,95856.0,0.61703628]
[1732551013924,0.0026,95888.0,95856.0,0.61703628]
[1732551013925,0.0999,95891.0,95878.0,0.3608]
[1732551014124,0.15618138,95890.0,95878.0,0.3608]
[1732551014325,0.052136,95888.0,95878.0,0.3608]
[1732551014522,0.052136,95888.0,95865.0,0.052148]
[1732551014523,0.052136,95888.0,95870.0,0.3608]
[1732551014820,0.00011784,95887.0,95870.0,0.3608]
[1732551015521,0.7216,95878.0,95860.0,0.15618138]
[1732551015712,0.3608,95878.0,95873.0,0.052144]
[1732551016126,0.3608,95878.0,95855.0,0.052153]
[1732551016127,0.67372,95878.0,95855.0,0.052153]
[1732551016338,0.3608,95861.0,95855.0,0.052153]
[1732551016830,0.3608,95861.0,95849.0,0.052157]
[1732551017018,0.3608,95861.0,95835.0,0.3608]
[1732551017019,0.3608,95853.0,95835.0,0.3608]
[1732551017217,0.3608,95845.0,95835.0,0.3608]
[1732551017416,0.3608,95853.0,95844.0,0.05216]
[1732551017631,0.3608,95853.0,95845.0,0.052159]
[1732551017835,0.3608,95853.0,95831.0,0.01432848]
[1732551018029,0.3608,95845.0,95832.0,0.00326217]
[1732551018235,0.3608,95845.0,95830.0,0.51698138]
[1732551018628,0.3608,95845.0,95840.0,0.052161]
[1732551019026,0.3608,95845.0,95835.0,0.009]
[1732551019225,0.3608,95853.0,95835.0,0.009]
[1732551019424,0.3608,95853.0,95847.0,0.052158]
[1732551019631,0.3608,95853.0,95840.0,0.15618138]
[1732551019632,0.18675286,95876.0,95840.0,0.15618138]
[1732551019929,0.3608,95858.0,95856.0,0.052153]
[1732551020623,0.3608,95858.0,95849.0,0.052157]
[1732551021034,0.3608,95858.0,95835.0,0.009]
[1732551021035,0.3608,95858.0,95851.0,0.052156]
[1732551021935,0.3608,95860.0,95835.0,0.02318189]
[1732551022134,0.3608,95860.0,95845.0,0.052159]